Cogmind - Beta 11 @@@ ROGUE MODE // 2022.04.14 @ 10:01:05 Player: Benkyo Result: Destroyed by D-53 Grenadier with Mini Grenade Launcher Performance ------------- Evolutions (0) 0 Regions Visited (2) 400 Robots Destroyed (27) 135 Value Destroyed (343) 343 Prototype IDs (0) 0 Alien Tech Used (0) 0 Bonus (0) 0 TOTAL SCORE: 878 Bonus ------- None Cogmind --------- Core Integrity 0/250 Matter 300/300 Energy 125/125 System Corruption 0% Temperature Cool (0) Movement Rolling (115) Ox1 Location -10/Mines Parts ------- > --- POWER (1) -------- Light Ion Engine > --- PROPULSION (2) --- Compact Wheel Compact Wheel > --- UTILITY (2) ------ High-capacity Storage Unit Core Shielding > --- WEAPON (2) ------- Light Assault Rifle Light Cannon > --- INVENTORY (20) --- Ion Engine Compact Wheel Compact Wheel Heat Sink Visual Processing Unit Sensor Array Signal Interpreter Improved Terrain Scanner Transport Network Coupler Core Shielding Faulty Improved EM Shotgun Beam Cannon Beam Cannon Light Assault Rifle Light Assault Rifle Light Assault Rifle Light Cannon Grenade Launcher Mining Laser Hammer Peak State ------------ > --- POWER ------------ Light Ion Engine > --- PROPULSION ------- Wheel Wheel > --- UTILITY ---------- High-capacity Storage Unit Core Shielding > --- WEAPON ----------- Light Assault Rifle Light Assault Rifle > --- INVENTORY -------- Ion Engine Light Ion Engine Compact Wheel Heat Sink Sensor Array Signal Interpreter Improved Terrain Scanner Transport Network Coupler Core Shielding Improved EM Shotgun Beam Cannon Beam Cannon Beam Cannon Light Assault Rifle Light Assault Rifle Light Cannon Grenade Launcher Hammer [Rating: 9] Favorites ----------- Power Light Ion Engine Engine Light Ion Engine Propulsion Compact Wheel Wheel Compact Wheel Utility High-capacity Storage Unit Device Sensor Array Storage High-capacity Storage Unit Protection Core Shielding Weapon Light Assault Rifle Ballistic Gun Light Assault Rifle Ballistic Cannon Light Cannon Build | -11 -10 -10 ------- Run | Scr Mat Min Slots Evolved . | . . . Power . | . . . Propulsion . | . . . Utility . | . . . Weapon . | . . . Parts Attached 17 | 6 11 . Power 2 | 1 1 . Engine 2 | 1 1 . Core . | . . . Reactor . | . . . Propulsion 6 | 2 4 . Treads . | . . . Leg . | . . . Wheel 6 | 2 4 . Hover . | . . . Flight . | . . . Utility 5 | 1 4 . Device 1 | . 1 . Storage 3 | 1 2 . Processor . | . . . Hackware . | . . . Protection 1 | . 1 . Artifact . | . . . Weapon 4 | 2 2 . Energy Gun . | . . . Energy Cannon . | . . . Ballistic Gun 3 | 2 1 . Ballistic Cannon 1 | . 1 . Launcher . | . . . Special Weapon . | . . . Impact Weapon . | . . . Slashing Weapon . | . . . Piercing Weapon . | . . . Special Melee Weapon . | . . . Unidentified Prototypes . | . . . Parts Lost 5 | . 5 . Power . | . . . Propulsion 2 | . 2 . Utility 1 | . 1 . Weapon 2 | . 2 . Highest Loss Streak 4 | . 4 . To Critical Strikes . | . . . Average Slot Usage (%) 99 | . 99 100 Engine 14 | . 14 14 Wheel 28 | . 28 28 Device 3 | . 3 . Storage 14 | . 15 14 Protection 9 | . 8 14 Ballistic Gun 21 | . 22 14 Ballistic Cannon 5 | . 5 14 Naked Turns . | . . . Heaviest Build 48 | 12 48 48 Greatest Support 32 | 32 32 32 Greatest Overweight (x) 2 | . 2 1 Average Overweight (x) 1 | . 1 1 Largest Inventory Capacity 20 | 8 20 20 Average Capacity 17 | 7 18 20 Most Carried 20 | 7 20 20 Average Carried 14 | 3 15 20 Final Capacity 20 | 8 20 20 Final Carried 20 | 7 20 20 Class Distribution -------------------- 100% | Mutant Dominant Class ---------------- Mutant | -10/Materials Mutant | -10/Mines Resources | -11 -10 -10 ----------- Run | Scr Mat Min Matter Collected 657 | 344 283 30 Remotely . | . . . Salvage Created 615 | 190 398 27 Parts 55 | 13 35 7 Haulers Intercepted 2 | . 2 . Recyclers Shooed 3 | 2 1 . Parts Field Recycled . | . . . Retrieved Matter . | . . . Parts Self-Destructed . | . . . Prevented . | . . . Kills | -11 -10 -10 ------- Run | Scr Mat Min Combat Hostiles Destroyed 16 | . 13 3 Guns 12 | . 12 . Cannons 4 | . 1 3 Classes Destroyed 7 | 3 4 . Worker 1 | 1 . . Tunneler 4 | 4 . . Hauler 2 | . 2 . Recycler 1 | 1 . . Watcher 3 | . 3 . Swarmer 12 | . 9 3 Grunt 4 | . 4 . Best Kill Streak 4 | 3 4 3 Combat Bots Only 4 | . 4 3 Max Kills in Single Turn 1 | 1 1 1 Gunslinging . | . . . Exploded . | . . . Melee . | . . . Uniques/NPCs Destroyed . | . . . Combat | -11 -10 -10 -------- Run | Scr Mat Min Damage Taken 798 | . 674 124 Core 251 | . 180 71 Absorbed by Shields . | . . . Redirected to Shielding 26 | . 9 17 Core Remaining (%) 100 | 100 . . Volleys Fired 103 | 25 72 6 Largest 2 | 2 2 2 Hottest 55 | 40 55 55 Shots Fired 206 | 50 144 12 Gun 185 | 50 129 6 Cannon 21 | . 15 6 Launcher . | . . . Special . | . . . Kinetic 206 | 50 144 12 Thermal . | . . . Explosive . | . . . Electromagnetic . | . . . Robot Hit Streak 12 | 6 12 2 Robot Miss Streak 9 | 2 9 2 Penetration Max . | . . . Secondary Targets . | . . . Shots Hit Robots 114 | 32 76 6 Core Hits 51 | 12 33 6 Critical Kills . | . . . Critical Parts Destroyed 1 | 1 . . Critical Strikes 1 | 1 . . Destroy 1 | 1 . . Melee Attacks . | . . . Impact . | . . . Slashing . | . . . Piercing . | . . . Sneak Attacks . | . . . Combat Hostiles . | . . . Follow-up Attacks . | . . . Damage Inflicted 1070 | 263 731 76 Guns 833 | 263 550 20 Cannons 237 | . 181 56 Explosions . | . . . Melee . | . . . Ramming . | . . . Kinetic 1070 | 263 731 76 Thermal . | . . . Explosive . | . . . Electromagnetic . | . . . Impact . | . . . Slashing . | . . . Piercing . | . . . Highest Corruption . | . . . Average Corruption . | . . . Corruption Purged . | . . . Corruption Blocked . | . . . Overload Shots . | . . . Overflow Damage . | . . . Projectiles . | . . . Explosions . | . . . Melee . | . . . Knockbacks 5 | . 5 . Impact . | . . . Kinetic 5 | . 5 . Secondary . | . . . Self-Inflicted Damage . | . . . Shots . | . . . Rammed . | . . . Targets Rammed . | . . . Kicked . | . . . Crushed . | . . . Highest Temperature 40 | . 40 28 Average Temperature 12 | . 12 12 Received Heat Transfer 102 | . 102 . Siege Activations . | . . . Robots Corrupted . | . . . Combat Hostiles . | . . . Parts Fried . | . . . Impact Corruptions . | . . . Robots Melted . | . . . Combat Hostiles . | . . . Parts Melted . | . . . Heat Transferred . | . . . Parts Sabotaged . | . . . Parts Stolen . | . . . Parts Stripped . | . . . Power Chain Reactions . | . . . Missiles Intercepted . | . . . Alert | -11 -10 -10 ------- Run | Scr Mat Min Peak Influence 275 | 30 275 155 Initial 40 | . 19 40 Average 118 | 12 132 135 Maximum Alert Level 1 | . 1 . Low Security (%) 89 | 100 87 100 Level 1 10 | . 12 . Level 2 . | . . . Level 3 . | . . . Level 4 . | . . . Level 5 . | . . . High Security . | . . . Max Security . | . . . Squads Dispatched 1 | . 1 . Investigation . | . . . Extermination . | . . . Reinforcement 1 | . 1 . Assault . | . . . Garrison . | . . . Intercept . | . . . Searches Triggered . | . . . Construction Impeded . | . . . Haulers Reinforced . | . . . Active Scanning Responses . | . . . Cargo Convoy Interrupts . | . . . Stealth | -11 -10 -10 --------- Run | Scr Mat Min Distress Signals 1 | . 1 . Communications Jammed . | . . . Distress Signals . | . . . Times Spotted 35 | . 27 8 Peak Tracking Total 5 | . 5 3 Tactical Retreats 4 | . 2 2 Traps | -11 -10 -10 ------- Run | Scr Mat Min Traps Triggered 1 | . 1 . Indirectly . | . . . Trap Hack Attempts . | . . . Triggered . | . . . Disarmed . | . . . Reprogrammed . | . . . Reused . | . . . Traps Extracted . | . . . Installed . | . . . Triggered . | . . . Machines | -11 -10 -10 ---------- Run | Scr Mat Min Machines Disabled 2 | . 2 . Max in Single Turn 1 | . 1 . Machines Sabotaged . | . . . Garrisons Compromised . | . . . Overloaded Fab Kills . | . . . Hacking | -11 -10 -10 --------- Run | Scr Mat Min Machines Accessed 10 | . 10 . Terminals 7 | . 7 . Fabricators . | . . . Repair Stations 1 | . 1 . Recycling Units 2 | . 2 . Scanalyzers . | . . . Garrison Access . | . . . Total Hacks 25 | . 25 . Successful 15 | . 15 . Failed 10 | . 10 . Catastrophic 1 | . 1 . Database Lockouts . | . . . Manual 18 | . 18 . Terminals 19 | . 19 . Fabricators . | . . . Repair Stations 2 | . 2 . Recycling Units 4 | . 4 . Scanalyzers . | . . . Garrison Access . | . . . Terminal Hacks 7 | . 7 . Robot Analysis 5 | . 5 . Hauler Manifests 1 | . 1 . Registered Components 1 | . 1 . Fabricator Hacks . | . . . Repair Station Hacks 1 | . 1 . Scan Component 1 | . 1 . Recycling Unit Hacks 1 | . 1 . Retrieve Components 1 | . 1 . Scanalyzer . | . . . Garrison Access Hacks . | . . . Unauthorized Hacks 6 | . 6 . Terminals 3 | . 3 . Botnet 3 | . 3 . Fabricators . | . . . Repair Stations . | . . . Recycling Units 3 | . 3 . Reject 2 | . 2 . Mask 1 | . 1 . Scanalyzers . | . . . Garrison Access . | . . . Data Cores Recovered . | . . . Used . | . . . Hacking Detections 10 | . 10 . Full Trace Events . | . . . Feedback Events . | . . . Feedback Blocked . | . . . Robot Schematics Acquired . | . . . Robots Built . | . . . Authchips . | . . . Time . | . . . Total Robot Build Rating . | . . . Part Schematics Acquired . | . . . Parts Built . | . . . Authchips . | . . . Time . | . . . Total Part Build Rating . | . . . Parts Repaired . | . . . Time . | . . . Parts Recycled . | . . . Recycled Matter . | . . . Retrieved Matter . | . . . Retrieved Components 10 | . 10 . Parts Scanalyzed . | . . . Part Schematics Acquired . | . . . Parts Damaged . | . . . Bothacking | -11 -10 -10 ------------ Run | Scr Mat Min Used RIF Installer . | . . . Robots Hacked . | . . . Non-combat . | . . . Combat . | . . . Robot Hacks Applied . | . . . Relay Couplers Released . | . . . Fabnet Peak Effective % . | . . . Robots Rewired . | . . . Allies Hacked . | . . . Hacks Repelled . | . . . Allies | -11 -10 -10 -------- Run | Scr Mat Min Total Allies 2 | . . 2 Largest Group 2 | . . 2 Highest-Rated Group 42 | . . 42 Highest-Rated Ally 31 | . . 31 Total Orders . | . . . Ally Attacks 1 | . . 1 Total Damage 21 | . . 21 Kills . | . . . Allies Corrupted . | . . . Allies Melted . | . . . Intel | -11 -10 -10 ------- Run | Scr Mat Min Robot Analysis Total 5 | . 5 . Derelict Logs Recovered 1 | . . 1 Drone Launches . | . . . Drone Recoveries . | . . . Exploration | -11 -10 -10 ------------- Run | Scr Mat Min Turns Passed 1455 | 166 1166 123 Spaces Moved 981 | 88 803 90 Core 11 | 11 . . Treads . | . . . Legs . | . . . Wheels 970 | 77 803 90 Hover . | . . . Flight . | . . . Fastest Speed 50 | 50 100 115 Average Speed 107 | 93 108 115 Slowest Speed 130 | 100 130 115 Overloaded Moves . | . . . Propulsion Burnouts . | . . . Robots Hopped . | . . . Cave-ins Triggered . | . . . Exploration Rate (%) 43 | 5 96 30 Regions Visited 2 Branch Regions 1 Pre-discovered Areas 1 | . . 1 Known Exits Taken . | . . . Unknown Exits Taken 2 | 1 1 . Scrap Searched 1 | . . 1 Spaces Dug . | . . . Terrain Destroyed . | . . . Melee . | . . . Projectile . | . . . AOE . | . . . Terrain Rammed . | . . . Walls Destroyed . | . . . Machines Disabled . | . . . Actions | -11 -10 -10 --------- Run | Scr Mat Min Total 1212 | 129 985 98 Wait 68 | 1 65 2 Move 979 | 87 802 90 Hop . | . . . Pick Up 35 | 10 25 . Fast Attach 4 | 3 1 . Attach 8 | 3 5 . Detach . | . . . Swap 5 | . 5 . Drop 10 | . 10 . Fire 103 | 25 72 6 Melee . | . . . Ram . | . . . Kick . | . . . Crush . | . . . Escape Stasis . | . . . Rewire . | . . . Trap . | . . . Miscellaneous . | . . . Route ------- -11/Scrapyard -10/Materials (discovered 5 exits: [*Mat x3] / [*Min x2]) -10/Mines (discovered 1 exit: [*Mat]) History --------- Turn | Location | Event 8 | -11/Scrapyard | Discovered new exit (range 16) 167 | -11/Scrapyard | Entered Materials 314 | -10/Materials | Build established: Mutant 402 | -10/Materials | Discovered new exit (range 14) 494 | -10/Materials | Discovered new exit (range 16) 578 | -10/Materials | Core integrity fell below 50% 620 | -10/Materials | Lost 4 parts (2n1u1w) 712 | -10/Materials | Discovered new exit (range 10) 894 | -10/Materials | Discovered new exit (range 14) 1185 | -10/Materials | Discovered new exit (range 9) 1333 | -10/Materials | Entered Mines 1371 | -10/Mines | Core integrity fell below 20% 1444 | -10/Mines | Discovered new exit (range 10) 1451 | -10/Mines | Learned location of Zion (-7) 1452 | -10/Mines | Assembled infested the area 1456 | -10/Mines | Destroyed by D-53 Grenadier with Mini Grenade Launcher Last Messages --------------- 01366_ Found EM Pulse Gun. 01366_ Found 21 Matter. 01370_ K-01 Serf collects debris. 01371_ S-10 Pest destroyed. 01375_ Acquired 9 matter. 01376_ K-01 Serf collects debris. 01378_ Acquired 1 matter. 01379_ K-01 Serf collects debris. 01444_ A pair of derelicts emerge from the shadows: "We're, um, lost. You wouldn't happen to know the way out of here, would you?" 01444_ EXIT=FOUND 01447_ K-01 Serf collects debris. 01451_ Acquired derelict log, extracted data. World map updated: -7/Zion. 01452_ ALERT: Infestation in the mines, dispatching Demolisher response squad. 01455_ U-05 Engineer destroyed. 01456_ SP-Y4V(g) destroyed. 01456_ YM-K88(z) destroyed. 01456_ 51-4D5(h) destroyed. Map ----- +----------------------------------------------------+ | | | | | | | | | | | | | ?????????????????????????????????????????????????? | | ?????????????????????????????????????????????????? | | ?????????????????????????????????????????????????? | | ???????????####??????????????????????????????????? | | ????####??## ##?????????????????????????????????? | | ##### ##?# ##?#####??????????????????????????? | | #?# ### ##?????????????????????????? | | ## ### #?????????????????????????? | | ### ## #?????????????????????????? | | #?## #?????????????????????????? | | ###??## ## #?????????????????????????? | | ??????# #### #????????####?????????????? | | ??????# #??## ###????? ?????????????? | | ??????# #???### #???? ?????????????? | | ??????## #?????### ## #??? ????????????? | | ???????## ##????#### ## #### ???????????? | | ????????####????## ???????????? | | ????????????????# dd < ???????????? | | #?????#####?????## ### ???????????? | | #### #????# ! @ #?????????????????????? | | """?????????## % #?????????????????????? | | """??????????## !%= ??????????????????????? | | ### """???????????## ! ??????????????????????? | | #??? ?????????? % #??????????????????????? | | #?????"??????????#####= ##??????????????????????? | | #???????????????????# #???????????????????????? | | #???????????????????# #???????????????????????? | | #???????????????????# #???????????????????????? | | ##???????????????????# #???????????????????????? | | ##????????????????????# #???????????????????????? | | #?????????????????????# #???????????????????????? | | #?????????????????????# ???????????????????????? | | #?????????????????????# ???????????????????????? | | #?????????????????????####???????????????????????? | | #????????????????????????????????????????????????? | | #????????????????????????????????????????????????? | | ?????????????????????????????????????????????????? | | ?????????????????????????????????????????????????? | | ?????????????????????????????????????????????????? | | ?????????????????????????????????????????????????? | | ?????????????????????????????????????????????????? | | ?????????????????????????????????????????????????? | | ?????????????????????????????????????????????????? | | ?????????????????????????????????????????????????? | +----------------------------------------------------+ Best States ------------- Heat Dissipation 25 Energy Generation 10 Energy Capacity 250 Matter Stores 300 Matter Capacity 300 Sight Range 16 Robot Scan Range 14 Terrain Scan Density 10 Core Shielding 20 Evasion (%) 50 Item Schematics ----------------- None Robot Schematics ------------------ None Fabricated ------------ Nothing Alien Tech Used ----------------- None Achievements -------------- None Challenges ------------ None Game ------ Seed BladeKineticPlating Manual? 0 Play Time 00:21:14 Cumulative 84.7 hours Start 2022.04.14 @ 09:40:56 End 2022.04.14 @ 10:01:05 Sessions 1 Manual Loads 0 Difficulty Rogue Special Mode None Game No. 18 Rogue 11 Adventurer 1 Explorer 6 Win Type - Total 3 Types 1/1/1/0/0/0/0/0/0 Lore% 61 Gallery% 53 Achievement% 58 Wizard Run 0 Options --------- ASCII 0 Keyboard 0 Movement Mouse Keybinds 0 Fullscreen 1 Font 18/SmallcapsGlow Map View 76x50 Tactical HUD 1 Map Filters NONE Filters NONE Steam 1 RUN: a80a3d35-5ada-4bdf-8001-1604f6c7886a